fUST/lending_fUST_20240817
["ID","MTS","AMOUNT","RATE_DAILY","PERIOD"]
[335141087,1723890642055,-10570.91,0.00021917,2]
[335141088,1723890642066,-10570.91,0.00021917,2]
[335141089,1723890642076,-10570.91,0.00021917,2]
[335141090,1723890642087,-500.0,0.00021917,2]
[335141091,1723890642097,-10570.91,0.00021917,2]
[335141092,1723890642107,-10570.91,0.00021917,2]
[335141093,1723890642118,-10570.91,0.00021917,2]
[335141094,1723890642129,-10570.91,0.00021917,2]
[335141095,1723890642139,-10570.91,0.00021917,2]
[335141096,1723890642148,-500.0,0.00021917,2]
[335141097,1723890642157,-500.0,0.00021917,2]
[335141098,1723890642166,-1389.6,0.00021917,2]
[335141099,1723890642175,-500.0,0.00021917,2]
[335141100,1723890642184,-500.0,0.00021917,2]
[335141101,1723890642194,-4570.81,0.00021917,2]
[335141102,1723890642204,-500.0,0.00021917,2]
[335141103,1723890642213,-507.60752672,0.00021917,2]
[335141104,1723890642222,-531.66,0.00021917,2]
[335141105,1723890642231,-500.0,0.00021917,2]
[335141106,1723890642241,-233.1404628,0.00021918,2]
[335141107,1723890642250,-420.0,0.00021999,2]
[335141108,1723890642259,-150.112233,0.00022,3]
[335141109,1723890642268,-150.112233,0.00022,4]
[335141110,1723890642278,-5645.69974764,0.0002209,2]
[335141111,1723890642288,-10570.91,0.0002209,2]
[335141112,1723890642297,-150.112233,0.000221,3]
[335141113,1723890642307,-150.112233,0.000221,4]
[335141114,1723890642316,-150.112233,0.000221,2]
[335141115,1723890642326,-10570.91,0.0002218,2]
[335141116,1723890642335,-10570.91,0.0002218,2]
[335141117,1723890642345,-10570.91,0.0002218,2]
[335141118,1723890642354,-10570.91,0.00022189,2]
[335141119,1723890642366,-810.49,0.0002219,2]
[335141120,1723890642377,-500.0,0.0002219,2]
[335141121,1723890642388,-500.0,0.0002219,2]
[335141122,1723890642397,-500.0,0.0002219,2]
[335141123,1723890642408,-1302.46,0.0002219,2]
[335141124,1723890642418,-3815.52,0.0002219,2]
[335141125,1723890642427,-1463.19,0.0002219,2]
[335141126,1723890642437,-1313.81,0.0002219,2]
[335141127,1723890642447,-500.0,0.0002219,2]
[335141128,1723890642456,-557.32,0.0002219,2]
[335141129,1723890642466,-500.0,0.0002219,2]
[335141130,1723890642476,-500.0,0.0002219,2]
[335141131,1723890642487,-500.0,0.0002219,2]
[335141132,1723890642496,-4587.93,0.0002219,2]
[335141133,1723890642506,-1281.48,0.0002219,2]
[335141134,1723890642515,-500.0,0.0002219,2]
[335141135,1723890642525,-1296.99,0.0002219,2]
[335141136,1723890642534,-500.0,0.0002219,2]
[335141137,1723890642544,-1380.37,0.0002219,2]
[335141138,1723890642553,-500.0,0.0002219,2]
[335141139,1723890642563,-500.0,0.0002219,2]
[335141140,1723890642572,-3297.99,0.0002219,2]
[335141141,1723890642581,-500.0,0.0002219,2]
[335141142,1723890642591,-2369.1,0.0002219,2]
[335141143,1723890642600,-500.0,0.0002219,2]
[335141144,1723890642610,-3259.07,0.0002219,2]
[335141145,1723890642619,-500.0,0.0002219,2]
[335141146,1723890642629,-500.0,0.0002219,2]
[335141147,1723890642638,-500.0,0.0002219,2]
[335141148,1723890642647,-500.0,0.0002219,2]
[335141149,1723890642657,-2059.73,0.0002219,2]
[335141150,1723890642667,-558.53,0.0002219,2]
[335141151,1723890642676,-500.0,0.0002219,2]
[335141152,1723890642686,-500.0,0.0002219,2]
[335141153,1723890642695,-500.0,0.0002219,2]
[335141154,1723890642704,-500.0,0.0002219,2]
[335141155,1723890642714,-1089.27,0.0002219,2]
[335141156,1723890642723,-500.0,0.0002219,2]
[335141157,1723890642734,-500.0,0.0002219,2]
[335141158,1723890642744,-4118.73,0.0002219,2]
[335141159,1723890642753,-537.86,0.0002219,2]
[335141160,1723890642763,-10570.91,0.0002219,2]
[335141161,1723890642774,-10570.91,0.0002219,2]
[335141162,1723890642785,-10570.91,0.0002219,2]
[335141163,1723890642795,-10570.91,0.0002219,2]
[335141164,1723890642805,-10571.1062443,0.0002219,2]
[335141165,1723890642814,-500.0,0.0002219,2]
[335141166,1723890642823,-420.19280831,0.00022191,2]
[335141167,1723890642833,-500.0,0.00022191,2]
[335141168,1723890642842,-500.0,0.00022191,2]
[335141169,1723890642852,-500.0,0.00022191,2]
[335141170,1723890642861,-500.0,0.00022191,2]
[335141171,1723890642870,-500.0,0.00022191,2]
[335141172,1723890642879,-500.0,0.00022191,2]
[335141173,1723890642889,-500.0,0.00022191,2]
[335141174,1723890642898,-513.75771718,0.00022191,2]
[335141175,1723890642910,-500.0,0.00022191,2]
[335141176,1723890642919,-504.20703432,0.00022191,2]
[335141177,1723890642931,-500.0,0.00022191,2]
[335141178,1723890642941,-500.0,0.00022191,2]
[335141179,1723890642951,-500.0,0.00022191,2]
[335141180,1723890642961,-500.0,0.00022191,2]
[335141181,1723890642972,-500.0,0.00022191,2]
[335141182,1723890642983,-500.0,0.00022191,2]
[335141183,1723890642992,-500.0,0.00022191,2]
[335141184,1723890643004,-517.5228191,0.00022191,2]
[335141185,1723890643014,-506.93125917,0.00022191,2]
[335141187,1723890643023,-500.0,0.00022191,2]
[335141188,1723890643147,-500.0,0.00022191,2]
[335141189,1723890643159,-500.0,0.00022191,2]
[335141190,1723890643170,-511.42772732,0.00022191,2]
[335141191,1723890643180,-500.0,0.00022191,2]
[335141192,1723890643191,-500.0,0.00022191,2]
[335141193,1723890643201,-500.0,0.00022191,2]
[335141194,1723890643210,-500.0,0.00022191,2]
[335141195,1723890643222,-500.0,0.00022191,2]
[335141196,1723890643234,-500.0,0.00022191,2]
[335141197,1723890643245,-500.0,0.00022191,2]
[335141198,1723890643254,-500.0,0.00022191,2]
[335141199,1723890643265,-500.0,0.00022191,2]
[335141200,1723890643275,-500.0,0.00022191,2]
[335141201,1723890643286,-500.0,0.00022191,2]
[335141202,1723890643296,-575.75,0.00022191,2]
[335141203,1723890643307,-500.0,0.00022191,2]
[335141204,1723890643318,-500.0,0.00022191,2]
[335141205,1723890643329,-500.0,0.00022191,2]
[335141206,1723890643339,-500.0,0.00022191,2]
[335141207,1723890643350,-500.0,0.00022191,2]
[335141208,1723890643360,-500.0,0.00022191,2]
[335141209,1723890643371,-500.0,0.00022191,2]
[335141210,1723890643384,-500.0,0.00022191,2]
[335141211,1723890643396,-500.0,0.00022191,2]
[335141213,1723890643406,-500.0,0.00022191,2]
[335141215,1723890643416,-501.11217131,0.00022191,2]
[335141217,1723890643425,-500.0,0.00022191,2]
[335141218,1723890643437,-500.0,0.00022191,2]
[335141219,1723890643449,-500.0,0.00022191,2]
[335141220,1723890643459,-500.0,0.00022191,2]
[335141221,1723890643471,-513.07834967,0.00022191,2]
[335141222,1723890643481,-500.0,0.00022191,2]
[335141223,1723890643491,-506.08153697,0.00022191,2]
[335141224,1723890643501,-500.0,0.00022191,2]
[335141225,1723890643511,-265.06426026,0.00022191,2]
[335141226,1723890643523,-500.0,0.00022191,2]
[335141227,1723890643533,-513.14688146,0.00022191,2]
[335141228,1723890643543,-528.48,0.00022191,2]
[335141229,1723890643553,-500.0,0.00022191,2]
[335141230,1723890643564,-500.0,0.00022191,2]
[335141231,1723890643573,-500.0,0.00022191,2]
[335141232,1723890643584,-500.0,0.00022191,2]
[335141233,1723890643595,-523.29315083,0.00022191,2]
[335141234,1723890643606,-500.0,0.00022191,2]
[335141235,1723890643616,-500.0,0.00022191,2]
[335141236,1723890643626,-500.0,0.00022191,2]
[335141237,1723890643637,-500.0,0.00022191,2]
[335141238,1723890643648,-500.0,0.00022191,2]
[335141239,1723890643658,-500.0,0.00022191,2]
[335141240,1723890643669,-500.0,0.00022191,2]
[335141241,1723890643679,-500.0,0.00022191,2]
[335141242,1723890643690,-500.0,0.00022191,2]
[335141243,1723890643700,-500.0,0.00022191,2]
[335141244,1723890643711,-500.0,0.00022191,2]
[335141245,1723890643721,-500.0,0.00022191,2]
[335141246,1723890643731,-500.0,0.00022191,2]
[335141247,1723890643741,-500.0,0.00022191,2]
[335141248,1723890643750,-500.0,0.00022191,2]
[335141249,1723890643759,-885.91,0.00022191,2]
[335141250,1723890643768,-500.0,0.00022191,2]
[335141251,1723890643777,-500.0,0.00022191,2]
[335141252,1723890643786,-500.0,0.00022191,2]
[335141253,1723890643795,-500.0,0.00022191,2]
[335141254,1723890643804,-500.0,0.00022191,2]
[335141255,1723890643813,-500.0,0.00022191,2]
[335141256,1723890643822,-500.0,0.00022191,2]
[335141257,1723890643831,-500.0,0.00022191,2]
[335141258,1723890643840,-500.0,0.00022191,2]
[335141259,1723890643850,-500.0,0.00022191,2]
[335141260,1723890643859,-500.0,0.00022191,2]
[335141261,1723890643869,-500.0,0.00022191,2]
[335141262,1723890643879,-624.12901021,0.00022191,2]
[335141263,1723890643891,-500.0,0.00022191,2]
[335141264,1723890643902,-500.0,0.00022191,2]
[335141265,1723890643912,-500.0,0.00022191,2]
[335141266,1723890643923,-500.0,0.00022191,2]
[335141267,1723890643935,-500.0,0.00022191,2]
[335141268,1723890643946,-500.0,0.00022191,2]
[335141269,1723890643957,-500.0,0.00022191,2]
[335141270,1723890643967,-500.0,0.00022191,2]
[335141271,1723890643977,-642.6,0.00022191,2]
[335141272,1723890643987,-500.0,0.00022191,2]
[335141273,1723890643996,-500.0,0.00022191,2]
[335141274,1723890644007,-500.0,0.00022191,2]
[335141275,1723890644018,-154.95008082,0.00022191,2]
[335141276,1723890644029,-529.2,0.00022191,2]
[335141277,1723890644043,-500.0,0.00022191,2]
[335141278,1723890644053,-500.0,0.00022191,2]
[335141279,1723890644064,-500.0,0.00022191,2]
[335141280,1723890644075,-3128.21,0.00022191,2]
[335141281,1723890644085,-500.0,0.00022191,2]
[335141282,1723890644095,-500.0,0.00022191,2]
[335141283,1723890644104,-500.55,0.00022191,2]
[335141284,1723890644116,-361.3406628,0.00022191,2]
[335141285,1723890644127,-500.0,0.00022191,2]
[335141286,1723890644138,-500.0,0.00022191,2]
[335141287,1723890644148,-500.0,0.00022191,2]
[335141288,1723890644158,-500.0,0.00022191,2]
[335141289,1723890644169,-500.0,0.00022191,2]
[335141290,1723890644180,-500.0,0.00022191,2]
[335141291,1723890644191,-500.0,0.00022191,2]
[335141292,1723890644200,-500.0,0.00022191,2]
[335141293,1723890644212,-500.0,0.00022191,2]
[335141294,1723890644224,-500.0,0.00022191,2]
[335141295,1723890644234,-500.0,0.00022191,2]
[335141297,1723890644244,-1197.09,0.00022191,2]
[335141299,1723890644255,-500.0,0.00022191,2]
[335141301,1723890644266,-663.25,0.00022191,2]
[335141303,1723890644276,-500.0,0.00022191,2]
[335141304,1723890644285,-500.0,0.00022191,2]
[335141305,1723890644295,-500.0,0.00022191,2]
[335141306,1723890644305,-500.0,0.00022191,2]
[335141307,1723890644315,-553.57,0.00022191,2]
[335141308,1723890644324,-500.0,0.00022191,2]
[335141309,1723890644333,-500.0,0.00022191,2]
[335141310,1723890644342,-500.0,0.00022191,2]
[335141311,1723890644351,-500.0,0.00022191,2]
[335141312,1723890644361,-833.32,0.00022191,2]
[335141313,1723890644371,-500.0,0.00022191,2]
[335141314,1723890644380,-500.0,0.00022191,2]
[335141315,1723890644389,-593.58,0.00022191,2]
[335141316,1723890644399,-500.0,0.00022191,2]
[335141317,1723890644409,-635.22,0.00022191,2]
[335141318,1723890644419,-448.08658306,0.00022191,2]
[335141319,1723890644428,-500.0,0.00022191,2]
[335141320,1723890644438,-500.0,0.00022191,2]
[335141321,1723890644448,-500.0,0.00022191,2]
[335141322,1723890644457,-1678.22,0.00022191,2]
[335141323,1723890644467,-500.0,0.00022191,2]
[335141324,1723890644476,-523.73,0.00022191,2]
[335141325,1723890644485,-500.0,0.00022191,2]
[335141326,1723890644495,-500.62068146,0.00022191,2]
[335141327,1723890644504,-929.06,0.00022191,2]
[335141328,1723890644514,-500.0,0.00022191,2]
[335141329,1723890644523,-508.3851718,0.00022191,2]
[335141330,1723890644533,-500.0,0.00022191,2]
[335141331,1723890644542,-500.0,0.00022191,2]
[335141332,1723890644551,-5055.53,0.00022191,2]
[335141333,1723890644560,-500.0,0.00022191,2]
[335141334,1723890644569,-726.16,0.00022191,2]
[335141335,1723890644578,-500.0,0.00022191,2]
[335141336,1723890644588,-500.0,0.00022191,2]
[335141337,1723890644598,-500.0,0.00022191,2]
[335141338,1723890644608,-651.69,0.00022191,2]
[335141339,1723890644617,-1917.36,0.00022191,2]
[335141340,1723890644626,-500.0,0.00022191,2]
[335141341,1723890644636,-500.0,0.00022191,2]
[335141342,1723890644645,-500.0,0.00022191,2]
[335141343,1723890644655,-500.0,0.00022191,2]
[335141344,1723890644665,-500.0,0.00022191,2]
[335141345,1723890644675,-548.14768883,0.00022191,2]
[335141346,1723890644684,-785.84,0.00022191,2]
[335141347,1723890644693,-500.0,0.00022191,2]
[335141348,1723890644702,-500.0,0.00022191,2]
[335141349,1723890644711,-542.57,0.00022191,2]
[335141350,1723890644721,-500.0,0.00022191,2]
[335141351,1723890644730,-501.64,0.00022191,2]
[335141352,1723890644739,-1010.89,0.00022191,2]
[335141353,1723890644749,-500.0,0.00022191,2]
[335141354,1723890644758,-500.0,0.00022191,2]
[335141355,1723890644768,-215.30809943,0.00022191,2]
[335141356,1723890644778,-605.21,0.00022191,2]
[335141357,1723890644787,-500.0,0.00022191,2]
[335141358,1723890644797,-500.0,0.00022191,7]
[335141359,1723890644806,-375.8910051,0.00022191,2]
[335141360,1723890644816,-530.09,0.00022191,2]
[335141361,1723890644825,-558.14271637,0.00022191,2]
[335141362,1723890644835,-751.83,0.00022191,2]
[335141363,1723890644844,-500.0,0.00022191,2]
[335141364,1723890644854,-1556.4,0.00022191,2]
[335141365,1723890644863,-500.23,0.00022191,2]
[335141366,1723890644871,-752.59,0.00022191,2]
[335141367,1723890644881,-500.0,0.00022191,2]
[335141368,1723890644890,-611.43,0.00022191,2]
[335141369,1723890644900,-500.0,0.00022191,2]
[335141370,1723890644910,-500.0,0.00022191,2]
[335141371,1723890644919,-500.0,0.00022191,2]
[335141372,1723890644929,-668.57,0.00022191,2]
[335141373,1723890644938,-529.7971894,0.00022191,2]
[335141374,1723890644947,-500.0,0.00022191,2]
[335141375,1723890644957,-500.0,0.00022191,2]
[335141376,1723890644967,-842.04,0.00022191,2]
[335141377,1723890644976,-794.65,0.00022191,2]
[335141378,1723890644986,-500.0,0.00022191,2]
[335141379,1723890644995,-500.0,0.00022191,2]
[335141380,1723890645005,-500.0,0.00022191,2]
[335141381,1723890645014,-500.0,0.00022191,2]
[335141382,1723890645024,-500.0,0.00022191,2]
[335141383,1723890645035,-500.0,0.00022191,2]
[335141384,1723890645050,-631.62533681,0.00022191,2]
[335141385,1723890645061,-500.0,0.00022191,2]
[335141386,1723890645070,-533.77,0.00022191,2]
[335141387,1723890645081,-545.57,0.00022191,2]
[335141388,1723890645090,-588.4,0.00022191,2]
[335141389,1723890645100,-528.31546061,0.00022191,2]
[335141390,1723890645111,-500.0,0.00022191,2]
[335141391,1723890645121,-618.32,0.00022191,2]
[335141392,1723890645130,-500.0,0.00022191,2]
[335141393,1723890645141,-500.28,0.00022191,2]
[335141394,1723890645150,-885.0,0.00022191,2]
[335141395,1723890645160,-864.62,0.00022191,2]
[335141396,1723890645170,-500.0,0.00022191,2]
[335141397,1723890645180,-500.0,0.00022191,2]
[335141398,1723890645190,-514.86,0.00022191,2]
[335141399,1723890645200,-553.37,0.00022191,2]
[335141400,1723890645312,-546.53,0.00022191,2]
[335141401,1723890645321,-500.0,0.00022191,2]
[335141402,1723890645330,-693.53,0.00022191,2]
[335141403,1723890645339,-619.18,0.00022191,2]
[335141404,1723890645348,-1400.99,0.00022191,2]
[335141405,1723890645358,-500.0,0.00022191,2]
[335141406,1723890645367,-500.0,0.00022191,2]
[335141407,1723890645376,-500.0,0.00022191,2]
[335141408,1723890645385,-182.28473365,0.00022191,2]
[335141409,1723890645395,-1038.37,0.00022191,2]
[335141410,1723890645406,-1018.27,0.00022191,2]
[335141411,1723890645423,-500.0,0.00022191,2]
[335141412,1723890645432,-517.68,0.00022191,2]
[335141413,1723890645441,-500.0,0.00022191,2]
[335141414,1723890645450,-530.93,0.00022191,2]
[335141415,1723890645459,-655.89,0.00022191,2]
[335141416,1723890645468,-500.0,0.00022191,2]
[335141417,1723890645477,-500.0,0.00022191,2]
[335141418,1723890645486,-591.89,0.00022191,2]
[335141419,1723890645495,-500.0,0.00022191,2]
[335141420,1723890645504,-1232.8,0.00022191,2]
[335141421,1723890645513,-500.0,0.00022191,2]
[335141422,1723890645521,-500.0,0.00022191,2]
[335141423,1723890645530,-500.0,0.00022191,2]
[335141424,1723890645539,-500.0,0.00022191,2]
[335141425,1723890645548,-500.0,0.00022191,2]
[335141426,1723890645557,-543.94,0.00022191,2]
[335141427,1723890645567,-571.25,0.00022191,2]
[335141428,1723890645576,-500.0,0.00022191,2]
[335141429,1723890645587,-500.0,0.00022191,2]
[335141430,1723890645597,-503.76,0.00022191,2]
[335141431,1723890645606,-725.37,0.00022191,2]
[335141432,1723890645617,-500.0,0.00022191,2]
[335141433,1723890645627,-500.0,0.00022191,2]
[335141434,1723890645638,-582.58,0.00022191,2]
[335141435,1723890645648,-739.32,0.00022191,2]
[335141436,1723890645661,-1438.68,0.00022191,2]
[335141437,1723890645670,-500.0,0.00022191,2]
[335141438,1723890645680,-2248.55,0.00022191,2]
[335141439,1723890645691,-769.77,0.00022191,2]
[335141440,1723890645701,-657.64,0.00022191,2]
[335141441,1723890645714,-590.2,0.00022191,2]
[335141442,1723890645725,-788.03,0.00022191,2]
[335141443,1723890645735,-2904.2,0.00022191,2]
[335141444,1723890645747,-500.0,0.00022191,2]
[335141445,1723890645757,-500.0,0.00022191,2]
[335141446,1723890645767,-500.0,0.00022191,2]
[335141447,1723890645778,-500.0,0.00022191,2]
[335141448,1723890645790,-500.0,0.00022191,2]
[335141449,1723890645801,-737.6,0.00022191,2]
[335141450,1723890645811,-1067.82,0.00022191,2]
[335141451,1723890645821,-22187.11,0.00022191,2]
[335141452,1723890645831,-6948.85,0.00022191,2]
[335141453,1723890645843,-1369.92,0.00022191,2]
[335141454,1723890645855,-668.08,0.00022191,2]
[335141455,1723890645867,-1067.8,0.00022191,2]
[335141456,1723890645877,-2952.04,0.00022191,2]
[335141457,1723890645889,-1761.64,0.00022191,2]
[335141458,1723890645900,-500.0,0.00022191,2]
[335141459,1723890645912,-1088.19,0.00022191,2]
[335141460,1723890645923,-500.0,0.00022191,2]
[335141461,1723890645934,-500.0,0.00022191,2]
[335141462,1723890645945,-303.75664315,0.00022191,2]
[335141463,1723890645957,-616.8,0.00022191,2]
[335141464,1723890645968,-1664.5,0.00022191,2]
[335141465,1723890645980,-500.0,0.00022191,2]
[335141466,1723890645992,-869.36,0.00022191,2]
[335141467,1723890646002,-905.39,0.00022191,2]
[335141468,1723890646013,-1108.77,0.00022191,2]
[335141469,1723890646022,-500.0,0.00022191,2]
[335141470,1723890646035,-500.0,0.00022191,2]
[335141471,1723890646046,-500.0,0.00022191,2]
[335141472,1723890646058,-2520.02,0.00022191,2]
[335141473,1723890646069,-569.78,0.00022191,2]
[335141474,1723890646080,-500.0,0.00022191,2]
[335141475,1723890646091,-3853.14,0.00022191,2]
[335141476,1723890646101,-2333.05,0.00022191,2]
[335141477,1723890646111,-679.93,0.00022191,2]
[335141478,1723890646122,-500.0,0.00022191,2]
[335141479,1723890646131,-500.0,0.00022191,2]
[335141480,1723890646142,-523.53908688,0.00022191,2]
[335141481,1723890646153,-500.0,0.00022191,2]
[335141482,1723890646164,-521.59,0.00022191,2]
[335141483,1723890646174,-471.50924962,0.00022191,2]
[335141484,1723890646185,-500.0,0.00022191,2]
[335141485,1723890646195,-500.0,0.00022191,2]
[335141486,1723890646206,-2770.69,0.00022191,2]
[335141487,1723890646216,-692.79,0.00022191,2]
[335141488,1723890646228,-500.28,0.00022191,2]
[335141489,1723890646238,-465.54390002,0.00022191,2]
[335141490,1723890646248,-500.0,0.00022191,2]
[335141491,1723890646259,-500.0,0.00022191,2]
[335141492,1723890646269,-1389.6,0.00022191,2]
[335141493,1723890646279,-500.0,0.00022191,2]
[335141494,1723890646288,-500.0,0.00022191,2]
[335141495,1723890646298,-4570.81,0.00022191,2]
[335141496,1723890646308,-500.0,0.00022191,2]
[335141497,1723890646318,-531.66,0.00022191,2]
[335141498,1723890646328,-500.0,0.00022191,2]
[335141499,1723890646338,-150.112233,0.000222,3]
[335141500,1723890646348,-150.112233,0.000222,3]
[335141501,1723890646358,-150.112233,0.000222,5]
[335141502,1723890646369,-150.112233,0.000222,2]
[335141503,1723890646380,-150.112233,0.000223,4]
[335141504,1723890646391,-150.112233,0.000223,5]
[335141505,1723890646400,-150.112233,0.000224,2]
[335141506,1723890646412,-150.112233,0.000224,5]
[335141507,1723890646422,-500.0,0.00022464,2]
[335141508,1723890646432,-500.0,0.00022464,2]
[335141509,1723890646441,-1302.46,0.00022464,2]
[335141510,1723890646451,-3815.52,0.00022464,2]
[335141511,1723890646462,-1463.19,0.00022464,2]
[335141512,1723890646471,-1313.81,0.00022464,2]
[335141513,1723890646482,-500.0,0.00022464,2]
[335141514,1723890646491,-557.32,0.00022464,2]
[335141515,1723890646501,-500.0,0.00022464,2]
[335141516,1723890646510,-364.40249443,0.00022464,2]
[335141517,1723890646520,-4587.93,0.00022464,2]
[335141518,1723890646529,-1281.48,0.00022464,2]
[335141519,1723890646540,-500.0,0.00022464,2]
[335141520,1723890646550,-1296.99,0.00022464,2]
[335141521,1723890646560,-500.0,0.00022464,2]
[335141522,1723890646571,-1380.37,0.00022464,2]
[335141523,1723890646582,-500.0,0.00022464,2]
[335141524,1723890646593,-522.25533217,0.00022464,2]
[335141525,1723890646604,-3297.99,0.00022464,2]
[335141526,1723890646614,-500.0,0.00022464,2]
[335141527,1723890646624,-2369.1,0.00022464,2]
[335141528,1723890646635,-500.0,0.00022464,2]
[335141529,1723890646645,-3259.07,0.00022464,2]
[335141530,1723890646655,-500.0,0.00022464,2]
[335141531,1723890646665,-500.0,0.00022464,2]
[335141532,1723890646676,-500.0,0.00022464,2]
[335141533,1723890646687,-500.0,0.00022464,2]
[335141535,1723890646698,-2059.73,0.00022464,2]
[335141537,1723890646710,-558.53,0.00022464,2]
[335141538,1723890646721,-500.0,0.00022464,2]
[335141539,1723890646732,-500.0,0.00022464,2]
[335141540,1723890646742,-500.0,0.00022464,2]
[335141541,1723890646754,-500.0,0.00022464,2]
[335141542,1723890646764,-1089.27,0.00022464,2]
[335141543,1723890646775,-500.0,0.00022464,2]
[335141544,1723890646786,-500.0,0.00022464,2]
[335141545,1723890646796,-4118.73,0.00022464,2]
[335141546,1723890646806,-537.86,0.00022464,2]
[335141547,1723890646817,-500.0,0.00022464,2]
[335141548,1723890646826,-587.20305641,0.00022465,2]
[335141549,1723890646836,-500.0,0.00022465,2]
[335141550,1723890646846,-500.0,0.00022465,2]
[335141551,1723890646856,-500.0,0.00022465,2]
[335141552,1723890646866,-500.0,0.00022465,2]
[335141553,1723890646876,-500.0,0.00022465,2]
[335141554,1723890646885,-500.0,0.00022465,2]
[335141555,1723890646895,-500.0,0.00022465,2]
[335141556,1723890646905,-531.71676638,0.00022465,2]
[335141557,1723890646914,-500.0,0.00022465,2]
[335141558,1723890646924,-500.0,0.00022465,2]
[335141559,1723890646934,-500.0,0.00022465,2]
[335141560,1723890646943,-500.0,0.00022465,2]
[335141561,1723890646953,-500.0,0.00022465,2]
[335141562,1723890646963,-212.56,0.00022465,2]
[335141563,1723890646975,-500.0,0.00022465,2]
[335141564,1723890646986,-552.76796807,0.00022465,2]
[335141565,1723890646998,-500.0,0.00022465,2]
[335141566,1723890647008,-500.0,0.00022465,2]
[335141567,1723890647018,-500.0,0.00022465,2]
[335141568,1723890647028,-500.0,0.00022465,2]
[335141569,1723890647042,-500.0,0.00022465,2]
[335141570,1723890647053,-500.0,0.00022465,2]
[335141571,1723890647063,-500.0,0.00022465,2]
[335141572,1723890647073,-500.0,0.00022465,2]
[335141573,1723890647086,-500.0,0.00022465,2]
[335141574,1723890647096,-500.0,0.00022465,2]
[335141575,1723890647106,-500.0,0.00022465,2]
[335141576,1723890647117,-575.75,0.00022465,2]
[335141577,1723890647127,-500.0,0.00022465,2]
[335141578,1723890647138,-506.06213913,0.00022465,2]
[335141579,1723890647148,-500.0,0.00022465,2]
[335141580,1723890647158,-500.0,0.00022465,2]
[335141581,1723890647168,-219.86826079,0.00022465,2]
[335141582,1723890647957,-280.13173921,0.00022465,2]
[335141583,1723890647967,-258.43818164,0.00022465,2]
[335141584,1723890648596,-500.0,0.00021917,2]
[335141585,1723890648606,-500.0,0.00022191,2]
[335141586,1723890648616,-241.56181836,0.00022465,2]
[335141587,1723890648625,-500.0,0.00022465,2]
[335141588,1723890648634,-500.0,0.00022465,2]
[335141589,1723890648763,-500.0,0.00022465,2]
[335141590,1723890648773,-466.66762868,0.00022465,2]
[335141591,1723890648783,-500.0,0.00022465,2]
[335141592,1723890648793,-500.0,0.00022465,2]
[335141593,1723890648803,-500.0,0.00022465,2]
[335141594,1723890648812,-500.0,0.00022465,2]
[335141595,1723890648823,-500.0,0.00022465,2]
[335141596,1723890648832,-500.0,0.00022465,2]